Cogmind - Beta 10.2 *** ADVENTURER MODE // 2022.02.17 @ 04:01:34 Player: woegarden Result: Destroyed by G-47 Trooper with Particle Gun Performance ------------- Evolutions (2) 1000 Regions Visited (5) 1000 Robots Destroyed (53) 265 Value Destroyed (1282) 1282 Prototype IDs (4) 80 Alien Tech Used (0) 0 Bonus (34) 34 TOTAL SCORE: 3661 Bonus ------- Follower Combat Kills 67 Friendly Fire -33 Cogmind --------- Core Integrity 0/550 Matter 300/300 Energy 100/100 System Corruption 9% Temperature Cool (9) Movement Core (550) Ox10 Location -8/Materials Parts ------- > --- POWER (3) -------- (None) > --- PROPULSION (2) --- (None) > --- UTILITY (4) ------ High-capacity Storage Unit > --- WEAPON (2) ------- (None) > --- INVENTORY (12) --- Light Ion Engine Improved Heat Sink Large Battery (300) Medium Matter Pod (100) Structural Scanner Improved Terrain Scanner Utility Shielding Improved Shield Generator Hacking Suite System Backup Module Tractor Beam Peak State ------------ > --- POWER ------------ Deuterium Engine Deuterium Engine Deuterium Engine > --- PROPULSION ------- Light Treads Improved Treads > --- UTILITY ---------- High-capacity Storage Unit Light Armor Plating Bomb Drone Bay > --- WEAPON ----------- Gauss Rifle Gauss Rifle > --- INVENTORY -------- Light Ion Engine Improved Ion Engine Improved Heat Sink Large Battery Medium Matter Pod Structural Scanner Improved Terrain Scanner Utility Shielding Improved Shield Generator Hacking Suite System Backup Module Tractor Beam [Rating: 38] Favorites ----------- Power Light Ion Engine Engine Light Ion Engine Propulsion Wheel Treads Light Treads Wheel Wheel Hover Unit Hover Unit Flight Unit Flight Unit Utility Small Matter Pod Device Improved Terrain Scanner Storage Small Matter Pod Processor Terrain Scan Processor Protection Light Armor Plating Weapon Medium Laser Energy Gun Medium Laser Ballistic Gun Light Assault Rifle Launcher Grenade Launcher Build | -11 -10 -10 -10 -9 -8 ------- Run | Scr Mat Min Exi Min Mat Slots Evolved 4 | . . . . . 4 Power 2 | . . . . . 2 Propulsion . | . . . . . . Utility 2 | . . . . . 2 Weapon . | . . . . . . Parts Attached 57 | 9 31 . . 3 14 Power 6 | 1 1 . . . 4 Engine 6 | 1 1 . . . 4 Core . | . . . . . . Reactor . | . . . . . . Propulsion 15 | 3 10 . . 1 1 Treads 2 | . . . . 1 1 Leg 1 | 1 . . . . . Wheel 6 | 2 4 . . . . Hover 1 | . 1 . . . . Flight 5 | . 5 . . . . Utility 24 | 2 15 . . . 7 Device 10 | 1 5 . . . 4 Storage 10 | 1 9 . . . . Processor 1 | . 1 . . . . Hackware . | . . . . . . Protection 3 | . . . . . 3 Artifact . | . . . . . . Weapon 12 | 3 5 . . 2 2 Energy Gun 6 | 1 4 . . 1 . Energy Cannon . | . . . . . . Ballistic Gun 4 | 2 . . . . 2 Ballistic Cannon . | . . . . . . Launcher 2 | . 1 . . 1 . Special Weapon . | . . . . . . Impact Weapon . | . . . . . . Slashing Weapon . | . . . . . . Piercing Weapon . | . . . . . . Special Melee Weapon . | . . . . . . Unidentified Prototypes 1 | . . . . . 1 Parts Lost 12 | . 1 . . 2 9 Power 3 | . . . . . 3 Propulsion 3 | . . . . 1 2 Utility 2 | . . . . . 2 Weapon 4 | . 1 . . 1 2 Highest Loss Streak 8 | . 1 . . 1 8 Average Slot Usage (%) 80 | . 88 100 97 68 75 Engine 15 | . 14 14 14 14 18 Treads 8 | . . . . 10 14 Wheel 10 | . 15 28 28 14 1 Flight 3 | . 11 . . . . Device 5 | . 7 . . . 8 Storage 13 | . 15 28 26 14 9 Processor 1 | . 3 . . . . Protection 3 | . . . . . 8 Energy Gun 6 | . 6 14 14 14 . Ballistic Gun 6 | . . . . . 14 Launcher 5 | . 13 14 14 . . Naked Turns . | . . . . . . Heaviest Build 78 | 8 41 41 41 40 78 Greatest Support 43 | 20 20 20 20 20 43 Greatest Overweight (x) 13 | . 2 2 2 3 13 Average Overweight (x) . | . . 2 1 1 1 Largest Inventory Capacity 12 | 4 12 12 12 12 12 Average Capacity 6 | 4 7 12 12 12 12 Most Carried 12 | 4 7 7 8 11 12 Average Carried 4 | 2 4 7 7 8 10 Final Capacity 12 | 4 12 12 12 12 12 Final Carried 11 | 2 7 7 8 11 11 Class Distribution -------------------- 92% | Mutant 7% | Scavenger-Mutant Dominant Class ---------------- Mutant | -10/Materials Mutant | -10/Mines Mutant | -10/Exiles Mutant | -9/Mines Mutant | -8/Materials Resources | -11 -10 -10 -10 -9 -8 ----------- Run | Scr Mat Min Exi Min Mat Matter Collected 1258 | 351 335 . 92 35 445 Remotely . | . . . . . . Salvage Created 1764 | 107 458 . . 167 1032 Parts 106 | 12 34 . . 9 51 Haulers Intercepted . | . . . . . . Recyclers Shooed 3 | . . . . . 3 Parts Field Recycled . | . . . . . . Retrieved Matter . | . . . . . . Parts Self-Destructed . | . . . . . . Prevented . | . . . . . . Kills | -11 -10 -10 -10 -9 -8 ------- Run | Scr Mat Min Exi Min Mat Combat Hostiles Destroyed 31 | 1 10 . . 6 14 Guns 22 | 1 2 . . 5 14 AOE 9 | . 8 . . 1 . Classes Destroyed 10 | 3 4 . . 1 2 Worker 5 | 1 2 . . . 2 Builder 5 | . 4 . . . 1 Tunneler 3 | 2 1 . . . . Recycler 5 | . 2 . . . 3 Operator 1 | . . . . . 1 Watcher 3 | . 3 . . . . Swarmer 6 | . 3 . . 3 . Grunt 20 | 1 7 . . 2 10 Brawler 1 | . . . . 1 . Sentry 4 | . . . . . 4 Best Kill Streak 9 | 3 7 . . 3 9 Combat Bots Only 5 | 1 3 . . 3 5 Max Kills in Single Turn 4 | 1 4 . . 1 2 Gunslinging . | . . . . . . Exploded 3 | . 3 . . 1 . Melee . | . . . . . . Uniques/NPCs Destroyed . | . . . . . . Combat | -11 -10 -10 -10 -9 -8 -------- Run | Scr Mat Min Exi Min Mat Damage Taken 2394 | 42 222 . . 144 1986 Core 709 | 8 101 . . 42 558 Absorbed by Shields . | . . . . . . Core Remaining (%) 67 | 96 . . . 39 . Volleys Fired 116 | 14 35 . . 20 47 Largest 2 | 2 2 . . 2 2 Hottest 95 | 70 80 . . 95 56 Shots Fired 163 | 28 36 . . 21 78 Gun 149 | 28 23 . . 20 78 Cannon . | . . . . . . Launcher 14 | . 13 . . 1 . Special . | . . . . . . Kinetic 94 | 16 . . . . 78 Thermal 55 | 12 23 . . 20 . Explosive 14 | . 13 . . 1 . Electromagnetic . | . . . . . . Robot Hit Streak 28 | 9 14 . . 13 28 Robot Miss Streak 2 | 1 2 . . 2 2 Penetration Max 1 | . . . . . 1 Secondary Targets 1 | . . . . . 1 Max Gunslinging Chain 1 | . . . . . 1 Shots Hit Robots 125 | 23 25 . . 15 62 Core Hits 83 | 8 31 . . 10 34 Critical Hits 2 | . . . . . 2 Critical Kills 2 | . . . . . 2 Critical Parts Destroyed . | . . . . . . Melee Attacks . | . . . . . . Impact . | . . . . . . Slashing . | . . . . . . Piercing . | . . . . . . Sneak Attacks . | . . . . . . Combat Hostiles . | . . . . . . Follow-up Attacks . | . . . . . . Damage Inflicted 3258 | 243 1077 . . 309 1629 Guns 2323 | 243 213 . . 245 1622 Cannons . | . . . . . . Explosions 928 | . 864 . . 64 . Melee . | . . . . . . Ramming 7 | . . . . . 7 Kinetic 1725 | 103 . . . . 1622 Thermal 598 | 140 213 . . 245 . Explosive 928 | . 864 . . 64 . Electromagnetic . | . . . . . . Impact . | . . . . . . Slashing . | . . . . . . Piercing . | . . . . . . Highest Corruption 9 | . . . . . 9 Average Corruption 9 | . . . . . 9 Corruption Purged . | . . . . . . Effects 5 | . . . . . 5 Message Errors 2 | . . . . . 2 Matter Fused 1 | . . . . . 1 Energy Discharges 1 | . . . . . 1 Data Loss (major) 1 | . . . . . 1 Overload Shots . | . . . . . . Overflow Damage . | . . . . . . Projectiles . | . . . . . . Explosions . | . . . . . . Melee . | . . . . . . Knockbacks . | . . . . . . Impact . | . . . . . . Kinetic . | . . . . . . Secondary . | . . . . . . Self-Inflicted Damage 2 | . . . . . 2 Shots . | . . . . . . Rammed 8 | . . . . . 8 Targets Rammed 8 | . . . . . 8 Kicked . | . . . . . . Crushed . | . . . . . . Highest Temperature 351 | 190 94 . . 144 351 Average Temperature 92 | 104 38 . . 48 118 Received Heat Transfer 729 | 30 126 . . 78 495 Effects 4 | . . . . . 4 Shutdowns 1 | . . . . . 1 Energy Bleed 1 | . . . . . 1 Interference 1 | . . . . . 1 Damage (minor) 1 | . . . . . 1 Siege Activations . | . . . . . . Robots Corrupted . | . . . . . . Combat Hostiles . | . . . . . . Parts Fried . | . . . . . . Impact Corruptions . | . . . . . . Robots Melted . | . . . . . . Combat Hostiles . | . . . . . . Parts Melted 6 | 1 3 . . 2 . Heat Transferred 1665 | 407 629 . . 629 . Parts Sabotaged . | . . . . . . Parts Stolen . | . . . . . . Parts Stripped . | . . . . . . Power Chain Reactions . | . . . . . . Missiles Intercepted . | . . . . . . Alert | -11 -10 -10 -10 -9 -8 ------- Run | Scr Mat Min Exi Min Mat Peak Influence 376 | 35 303 53 . 247 376 Initial 81 | . . 53 . . 81 Average 59 | 3 163 53 . 154 108 Maximum Alert Level 1 | . 1 . . 1 1 Low Security (%) 90 | 100 77 100 . 59 83 Level 1 9 | . 22 . . 40 16 Level 2 . | . . . . . . Level 3 . | . . . . . . Level 4 . | . . . . . . Level 5 . | . . . . . . High Security . | . . . . . . Max Security . | . . . . . . Squads Dispatched 6 | . 3 . . . 3 Investigation 3 | . 3 . . . . Extermination . | . . . . . . Reinforcement 3 | . . . . . 3 Assault . | . . . . . . Garrison . | . . . . . . Intercept . | . . . . . . Construction Impeded 1 | . . . . . 1 Haulers Reinforced . | . . . . . . Stealth | -11 -10 -10 -10 -9 -8 --------- Run | Scr Mat Min Exi Min Mat Distress Signals 3 | . . . . . 3 Communications Jammed . | . . . . . . Distress Signals . | . . . . . . Times Spotted 58 | 1 13 . . 12 32 Peak Tracking Total 7 | 1 4 . . 4 7 Tactical Retreats 5 | . . . . 1 4 Traps | -11 -10 -10 -10 -9 -8 ------- Run | Scr Mat Min Exi Min Mat Traps Triggered 1 | . 1 . . . . Indirectly . | . . . . . . Trap Hack Attempts . | . . . . . . Triggered . | . . . . . . Disarmed . | . . . . . . Reprogrammed . | . . . . . . Reused . | . . . . . . Traps Extracted . | . . . . . . Installed . | . . . . . . Triggered . | . . . . . . Machines | -11 -10 -10 -10 -9 -8 ---------- Run | Scr Mat Min Exi Min Mat Machines Disabled 4 | . 1 . . 3 . Max in Single Turn 1 | . 1 . . 1 . Machines Sabotaged . | . . . . . . Garrisons Compromised . | . . . . . . Overloaded Fab Kills . | . . . . . . Fab Network Shutdowns . | . . . . . . Hacking | -11 -10 -10 -10 -9 -8 --------- Run | Scr Mat Min Exi Min Mat Machines Accessed 5 | . 4 . . 1 . Terminals 3 | . 3 . . . . Fabricators . | . . . . . . Repair Stations . | . . . . . . Recycling Units 1 | . 1 . . . . Scanalyzers . | . . . . . . Garrison Access . | . . . . . . Total Hacks 20 | . 19 . . 1 . Successful 19 | . 18 . . 1 . Failed 1 | . 1 . . . . Catastrophic . | . . . . . . Database Lockouts . | . . . . . . Manual . | . . . . . . Terminals 12 | . 12 . . . . Fabricators . | . . . . . . Repair Stations . | . . . . . . Recycling Units 7 | . 7 . . . . Scanalyzers . | . . . . . . Garrison Access . | . . . . . . Terminal Hacks 13 | . 12 . . 1 . Record 5 | . 5 . . . . Prototype ID Bank 2 | . 2 . . . . Open Door 1 | . . . . 1 . Branch Access Points 1 | . 1 . . . . Locate Traps 1 | . 1 . . . . Reinforcement Status 1 | . 1 . . . . Assault Status 1 | . 1 . . . . Registered Prototypes 1 | . 1 . . . . Fabricator Hacks . | . . . . . . Repair Station Hacks . | . . . . . . Recycling Unit Hacks 6 | . 6 . . . . Recycle Component 1 | . 1 . . . . Process 3 | . 3 . . . . Retrieve Matter 1 | . 1 . . . . Retrieve Components 1 | . 1 . . . . Scanalyzer . | . . . . . . Garrison Access Hacks . | . . . . . . Unauthorized Hacks . | . . . . . . Terminals . | . . . . . . Fabricators . | . . . . . . Repair Stations . | . . . . . . Recycling Units . | . . . . . . Scanalyzers . | . . . . . . Garrison Access . | . . . . . . Data Cores Recovered . | . . . . . . Used . | . . . . . . Hacking Detections 3 | . 3 . . . . Full Trace Events 3 | . 3 . . . . Feedback Events . | . . . . . . Feedback Blocked . | . . . . . . Robot Schematics Acquired . | . . . . . . Robots Built . | . . . . . . Matter . | . . . . . . Time . | . . . . . . Total Robot Build Rating . | . . . . . . Part Schematics Acquired . | . . . . . . Parts Built . | . . . . . . Matter . | . . . . . . Time . | . . . . . . Total Part Build Rating . | . . . . . . Parts Repaired . | . . . . . . Time . | . . . . . . Parts Recycled 1 | . 1 . . . . Recycled Matter 13 | . 13 . . . . Retrieved Matter 13 | . 13 . . . . Retrieved Components . | . . . . . . Parts Scanalyzed . | . . . . . . Part Schematics Acquired . | . . . . . . Parts Damaged . | . . . . . . Bothacking | -11 -10 -10 -10 -9 -8 ------------ Run | Scr Mat Min Exi Min Mat Used RIF Installer . | . . . . . . Robots Hacked . | . . . . . . Non-combat . | . . . . . . Combat . | . . . . . . Robot Hacks Applied . | . . . . . . Relay Couplers Released . | . . . . . . Robots Rewired . | . . . . . . Allies Hacked . | . . . . . . Hacks Repelled . | . . . . . . Allies | -11 -10 -10 -10 -9 -8 -------- Run | Scr Mat Min Exi Min Mat Total Allies 2 | . . . . 2 . Largest Group 2 | . . . . 2 1 Highest-Rated Group 50 | . . . . 50 31 Highest-Rated Ally 31 | . . . . 31 31 Total Orders . | . . . . . . Ally Attacks 29 | . . . . 13 16 Total Damage 273 | . . . . 253 20 Kills 4 | . . . . 4 . Allies Corrupted . | . . . . . . Allies Melted . | . . . . . . Intel | -11 -10 -10 -10 -9 -8 ------- Run | Scr Mat Min Exi Min Mat Robot Analysis Total . | . . . . . . Derelict Logs Recovered 1 | . . . . 1 . Drone Launches 18 | . . . . . 18 Drone Recoveries 2 | . . . . . 2 Exploration | -11 -10 -10 -10 -9 -8 ------------- Run | Scr Mat Min Exi Min Mat Turns Passed 4970 | 2751 688 14 212 399 906 Spaces Moved 1947 | 432 704 15 213 218 365 Core 28 | 22 . . . . 6 Treads 519 | . . . . 160 359 Legs . | . . . . . . Wheels 1056 | 410 360 15 213 58 . Hover . | . . . . . . Flight 344 | . 344 . . . . Fastest Speed 37 | 50 37 100 90 110 180 Average Speed 106 | 78 65 100 98 161 189 Slowest Speed 700 | 80 205 100 100 180 700 Overloaded Moves . | . . . . . . Propulsion Burnouts . | . . . . . . Robots Hopped 2 | . . . . . 2 Cave-ins Triggered 1 | . . . . . 1 Exploration Rate (%) 43 | 44 59 5 58 51 45 Regions Visited 5 Branch Regions 3 Pre-discovered Areas . | . . . . . . Known Exits Taken 1 | . 1 . . . . Unknown Exits Taken 4 | 1 . 1 1 1 . Scrap Searched 1 | . . . . 1 . Spaces Dug . | . . . . . . Terrain Destroyed 79 | . 68 . . 10 1 Melee . | . . . . . . Projectile 1 | . . . . . 1 AOE 78 | . 68 . . 10 . Terrain Rammed . | . . . . . . Walls Destroyed . | . . . . . . Machines Disabled . | . . . . . . Actions | -11 -10 -10 -10 -9 -8 --------- Run | Scr Mat Min Exi Min Mat Total 4660 | 2818 902 14 216 246 464 Wait 2445 | 2351 85 . . . 9 Move 1939 | 431 703 14 212 217 362 Hop 1 | . . . . . 1 Pick Up 54 | 11 24 . 2 4 13 Fast Attach 1 | . 1 . . . . Attach 34 | 7 16 . . 3 8 Detach 11 | . 7 . . 1 3 Swap 22 | 2 14 . . . 6 Drop 29 | 2 17 . 2 1 7 Fire 116 | 14 35 . . 20 47 Melee . | . . . . . . Ram 8 | . . . . . 8 Kick . | . . . . . . Crush . | . . . . . . Escape Stasis . | . . . . . . Rewire . | . . . . . . Trap . | . . . . . . Miscellaneous . | . . . . . . Route ------- -11/Scrapyard -10/Materials (discovered 2 exits: [*Mat] / *Min) -10/Mines -10/Exiles (discovered 2 exits: *Min x2) -9/Mines -8/Materials (discovered 1 exit: [*Fac]) History --------- Turn | Location | Event 2 | -11/Scrapyard | Met Revision 17 77 | -11/Scrapyard | Discovered new exit (range 8) 2752 | -11/Scrapyard | Entered Materials 2753 | -10/Materials | Build established: Mutant 2826 | -10/Materials | Discovered new exit (range 11) 3054 | -10/Materials | Identified exit to Mines 3101 | -10/Materials | Discovered new exit (range 5) 3440 | -10/Materials | Entered Mines 3441 | -10/Mines | Met a Derelict bent on vengeance 3448 | -10/Mines | Deemed a non-threat by the Exiles lab entrance 3449 | -10/Mines | Discovered new exit (range 5) 3454 | -10/Mines | Entered Exiles 3482 | -10/Exiles | Discovered new exit (range 15) 3501 | -10/Exiles | Met 8R-AWN 3519 | -10/Exiles | Met EX-HEX 3560 | -10/Exiles | Met EX-DEC 3655 | -10/Exiles | Discovered new exit (range 14) 3666 | -10/Exiles | Entered Mines 3738 | -9/Mines | Core integrity fell below 50% 3814 | -9/Mines | Learned Materials terminal intel 3924 | -9/Mines | Found the Drone Emporium 3932 | -9/Mines | Found Prototype Device 4046 | -9/Mines | Discovered new exit (range 7) 4065 | -9/Mines | Entered Materials 4065 | -8/Materials | Accompanied by 1 ally 4065 | -8/Materials | Evolved 4 slots: Power x2, Utility x2 4066 | -8/Materials | Loaded intel: 12 terminal locations 4070 | -8/Materials | Led the pair of lost Derelicts to an unsafe place 4131 | -8/Materials | Identified Bomb Drone Bay 4261 | -8/Materials | Discovered new exit (range 8) 4860 | -8/Materials | Crushed by falling debris 4896 | -8/Materials | Core integrity fell below 50% 4942 | -8/Materials | Core integrity fell below 20% 4944 | -8/Materials | Lost 8 parts (2p2n2u2w) 4971 | -8/Materials | Destroyed by G-47 Trooper with Particle Gun Last Messages --------------- 04897_ Slammed into U-05 Engineer. Ramming works as a last resort when unarmed or blocked, but can have serious negative consequences. 04897_ ALERT: Construction progress impeded, dispatching reinforcements to local area. 04898_ Acquired 6 matter. 04904_ Slammed into K-01 Serf. 04908_ EUPM7MQJ3NIMD0WZ Q 04948_ 7ZPAM1E%XJSKAL6MIQXDMQ 3O3INK 04949_ S-10 Pest destroyed. 04951_ Slammed into S-10 Pest. 04959_ K-01 Serf collects debris. 04962_ Slammed into S-10 Pest. 04964_ System corrupted: Energy discharge (-29). [Achievement: First Step to Greatness] Map ----- +----------------------------------------------------+ | ?????????????????????????????????????????????????? | | ?????????????????????????????????????????????????? | | ?????????????????????????????????????????????????? | | ?????????????????????????????????????????????????? | | ???????????? ????????????????????????????????????? | | ???????????? ????????????????????????????????????? | | ???????????? ????????????????????????????????????? | | ???????????? ????????????????????????????????????? | | ???????????? ????????????????????????????????????? | | ?????????? ? ??????????????"T"???????????????????? | | ???????? # #?????????????"""???????????????????? | | ??????#? # #???????????????????????????????????? | | ??????+ # #???????????????????????????????????? | | ??????# # #???????????????????????????????????? | | ??????# # #???????????????????????????????????? | | ???????? # #?????????????????"?????????????????? | | ????????? # ##???????????????""" ???????????????? | | ????????### ####???????????? """????????????????? | | ????????# # # #??????????? ?????????????????? | | ????????####% #?????????? ???????????????????? | | ????????# #!## #????????? ????????????????????? | | ######### ###????####+####??????????????????? | | !*% #=#????# #??????????????????? | | !=% % %########% % ########???????????? | | = ! !% =[%k%ggg%%a% ????????? | | ######## # !%########=s@% % ????????? | | #??????#####/#####??? # ! k ????????? | | #???????? T??????# #########??????????? | | #??????# #????# #??????????????????? | | +??????# !! """ #????#### ####??????????????????? | | # ?????# !! """ #????????s#?????????????????????? | | # ????# ! """ #???????? #?????????????????????? | | #? ??? """ #????????o#?????????????????????? | | #? ! ?## ! ??#???????? #?????????????????????? | | #?? #?# /???????????? #?????????????????????? | | #??###?####+###??????????? #?????????????????????? | | #????# # #####?T??????# #??##+????????????????? | | #????# ] + ????? ?? #???????????????? | | #????# # ????? ? """?????????????? | | ##???# # ""???? "" T"?????????????? | | #???# ! # """?????" T" """?????????????? | | ##??# #* "??????? "" #####???????????? | | #??# ! # ???????? !!#???????????? | | #??# # ?????????? !!#???????????? | | # #??## # ############ ## ]]##??????????? | | = #??# # ]] #??????????? | | # #?## # # !!#???????????? | | # #?# # #! $ !!????????????? | | ### # ![ ###????????????? | | ### $ ##+#### [ [= #???????#????? | +----------------------------------------------------+ Best States ------------- Heat Dissipation 31 Energy Generation 32 Energy Capacity 625 Matter Stores 350 Matter Capacity 350 Sight Range 16 Terrain Scan Range 16 Terrain Scan Density 85 Armor Coverage 150 Resistance: KI 20 Resistance: TH 20 Resistance: EX 20 Resistance: EM 20 Resistance: I 20 Resistance: S 20 Resistance: P 20 Utility Shielding 33 Evasion (%) 62 Recoil Reduction 2 Offensive Hacking 10 Item Schematics ----------------- None Robot Schematics ------------------ None Fabricated ------------ Nothing Alien Tech Used ----------------- None Achievements -------------- Crack Shot First Step to Greatness One Hack Too Far Please Form A Line Release The Drones! Risk Taker Tourist Uninvited Guest Unlikely Earthworm Challenges ------------ None Game ------ Seed ZioniteSingularityWarhead Manual? 0 Play Time 01:05:07 Cumulative 2.1 hours Start 2022.02.17 @ 02:52:24 End 2022.02.17 @ 04:01:34 Sessions 1 Manual Loads 0 Difficulty Adventurer Special Mode None Game No. 1 Rogue 0 Adventurer 1 Explorer 0 Win Type - Total 0 Types 0/0/0/0/0/0/0/0/0 Lore% 1 Gallery% 3 Achievement% 3 Wizard Run 0 Options --------- ASCII 0 Keyboard 0 Movement Mouse Keybinds 0 Fullscreen 1 Font 16/Proggy Map View 76x50 Tactical HUD 1 Map Filters NONE Filters NONE Steam 1 RUN: 52b3d175-6b28-46a3-b9f4-a8434064249d